{"text_format":"1","workbook":"xlsx","n_sheets":2,"sheets":["Ark1","Ark2"],"not_rendered":{"charts":0,"images":2,"macros":1,"external_links":0,"defined_names":2,"comments":0,"pivot_tables":0},"unopened":[],"bounds":{"document_bytes":16777216,"sheet_cells":100000,"rows_first":2000,"rows_last":500,"rows_between":2000,"halvings":0,"cell_chars":16384,"cell_head_chars":4096},"cells_cut":0,"cells_raw":0,"read":"whole","date_system":"1900"}

{"sheet":"Ark1","index":0,"n_rows":64,"n_cols":33,"rows_kept":64,"cut":false,"hidden":false,"merged":[[47,19,51,35],[47,1,51,18],[57,10,57,26],[57,28,57,35],[46,28,46,35],[35,12,35,14],[36,12,36,14],[37,1,37,11],[37,12,37,14],[37,16,37,35],[36,1,36,11],[46,13,46,18],[35,1,35,11],[31,14,32,18],[31,19,32,23],[38,1,38,11],[39,12,39,14],[46,1,46,12],[1,12,3,35],[11,1,11,19],[12,1,13,5],[12,6,13,19],[7,1,7,19],[36,16,36,35],[10,20,15,35],[7,20,7,35],[9,1,9,19],[9,20,9,24],[9,25,9,35],[5,20,5,35],[20,1,21,35],[17,28,19,35],[59,8,60,8],[57,1,58,8],[52,2,52,16],[46,19,46,27],[52,23,52,35],[29,14,30,18],[31,6,32,9],[31,10,32,13],[29,6,30,9],[42,18,42,35],[61,1,61,8],[24,1,24,5],[29,1,32,5],[29,10,30,13],[29,19,30,23],[14,1,15,5],[14,6,15,19],[59,1,60,7],[44,1,44,18],[44,19,44,27],[22,1,23,5],[24,24,24,35],[22,24,23,35],[25,1,26,5],[24,6,24,11],[27,1,28,5],[27,24,28,35],[25,24,26,35],[27,6,28,11],[25,12,26,17],[27,12,28,17],[58,10,61,35],[38,16,38,35],[39,16,39,35],[25,18,26,23],[27,18,28,23],[33,1,33,35],[44,28,44,35],[38,12,38,14],[39,1,39,11],[22,6,23,11],[22,12,23,17],[22,18,23,23],[24,12,24,17],[24,18,24,23],[25,6,26,11]]}
[null,null,null,null,null,null,null,null,null,null,null,null,null,null,null,null,null,null,null,null,null,null,null,null,null,null,null,null,null,null,null,null,"Page 1 of 2"]
[]
[]
[]
[]
[null,"Customer information",null,null,null,null,null,null,null,null,null,null,null,null,null,null,null,null,null,null,"Part 1: Posten Norge AS invoicing bases"]
[null,"Customer number",null,null,null,null,null,null,null,null,null,null,null,null,null,null,null,null,null,null,"Order reference (max 35 characters)"]
[]
[null,"Customer name",null,null,null,null,null,null,null,null,null,null,null,null,null,null,null,null,null,null,"Telephone",null,null,null,null,"e-mail"]
[]
[null,"Address"]
[]
[null,"Postcode",null,null,null,null,"Place"]
[]
[]
[]
[null,"Recipients - Tick off",null,null,null,null,null,null,null,"Contents - Tick off"]
[null,null,"Companies",null,null,null,null,null,null,"Invoices",null,null,null,null,null,null,"Catalogues",null,null,null,null,null,null,null,"Other",null,null,null,"The information is used to public statistics and improvement of our services"]
[null,null,"Individuals",null,null,null,null,null,null,"Documents",null,null,null,null,null,null,"Small goods"]
[null,null,"Mixed",null,null,null,null,null,null,"Marketing/DM",null,null,null,null,null,null,"Magazines"]
[null," Specifications"]
[]
[null,"Destination",null,null,null,null,"Number of items",null,null,null,null,null,"Total weight",null,null,null,null,null,"Number of load carriers"]
[]
[null,null,null,null,null,null,null,null,null,null,null,null,"Kilos",null,null,null,null,null,"Trays, boxes etc."]
[null,"  Domestic"]
[]
[null,"  International"]
[]
[]
[]
[null,null,null,null,null,null,null,null,null,null," "]
[]
[]
[]
[null,"Surcharge for extra large items",null,null,null,null,null,null,null,null,null,null,"Number"]
[null,"Surcharge 1",null,null,null,null,null,null,null,null,null,null,null,null,null,">","* Between 2 -7 cm thick and size up to 35,3 x 25 cm"]
[null,"Surcharge 2",null,null,null,null,null,null,null,null,null,null,null,null,null,">","* More than 7 cm thick or larger than 35,3 x 25 cm"]
[null,"Surcharge 1 abroad*"]
[null,"Sursharge 2 abroad*"]
[]
[]
[null,"Signatures etc.",null,null,null,null,null,null,null,null,null,null,null,null,null,null,null,null,"Terms and conditons Items of varying sizes apply"]
[null,"Company name or subcontractor",null,null,null,null,null,null,null,null,null,null,null,null,null,null,null,null,null,"Contact person",null,null,null,null,null,null,null,null,"Telephone"]
[]
[null,"Place",null,null,null,null,null,null,null,null,null,null,null,"Date",null,null,null,null,null,"Place",null,null,null,null,null,null,null,null,"Date and time"]
[]
[]
[]
[]
[]
[]
[null,null,"Customers stamp and signature",null,null,null,null,null,null,null,null,null,null,null,null,null,null,null,null,null,null,null,null,"Stamp and signature Posten Norge AS"]
[]
[]
[]
[null,"Remarks and corrections by Posten Norge AS"]
[null,"Total weight of the mailing",null,null,null,null,null,null,null,null,"Remarks:",null,null,null,null,null,null,null,null,null,null,null,null,null,null,null,null,null,"The order form is corrected"]
[]
[null,null,null,null,null,null,null,null,"kg"]
[]
[]
[null,null,null,null,null,null,null,null,null,null,null,null,null,null,null,null,null,"Posten Norge AS, Foretaksregisteret: NO 984 661 185 MVA"]
[null,"2019 V01"]

{"sheet":"Ark2","index":1,"n_rows":67,"n_cols":34,"rows_kept":67,"cut":false,"hidden":false,"merged":[[22,12,23,17],[37,12,37,14],[37,1,37,11],[37,16,37,35],[17,28,19,35],[20,1,21,35],[22,24,23,35],[34,1,34,11],[34,12,34,14],[36,1,36,11],[36,16,36,35],[14,1,15,5],[14,6,15,19],[62,1,63,7],[47,1,47,18],[47,19,47,27],[39,1,39,11],[33,1,33,35],[24,24,24,35],[36,12,36,14],[24,1,24,5],[1,12,3,35],[11,1,11,19],[12,1,13,5],[12,6,13,19],[7,1,7,19],[7,20,7,35],[9,1,9,19],[9,20,9,24],[9,25,9,35],[38,12,38,14],[35,1,35,11],[39,12,39,14],[47,28,47,35],[49,28,49,35],[52,1,54,18],[49,1,49,12],[39,16,39,35],[35,12,35,14],[35,16,35,35],[49,13,49,18],[64,1,64,8],[38,1,38,11],[45,18,45,35],[55,23,55,35],[62,8,63,8],[60,1,61,8],[55,2,55,16],[49,19,49,27],[38,16,38,35],[22,18,23,23],[24,6,24,11],[24,12,24,17],[24,18,24,23],[25,1,26,5],[25,6,26,11],[25,12,26,17],[25,18,26,23],[22,1,23,5],[22,6,23,11],[25,24,26,35],[27,24,28,35],[27,1,28,5],[27,6,28,11],[27,12,28,17],[27,18,28,23]]}
[null,null,null,null,null,null,null,null,null,null,null,null,null,null,null,null,null,null,null,null,null,null,null,null,null,null,null,null,null,null,null,null,null,"Page 2 of 2"]
[]
[]
[]
[]
[null,"Customer information",null,null,null,null,null,null,null,null,null,null,null,null,null,null,null,null,null,null,null,null,null,null,null,null,"Part 2: Customers copy"]
[null,"Customer number",null,null,null,null,null,null,null,null,null,null,null,null,null,null,null,null,null,null,"Order reference (max 35 characters)"]
[null,{"$f":"'Ark1'!B8","v":0},null,null,null,null,null,null,null,null,null,null,null,null,null,null,null,null,null,null,{"$f":"'Ark1'!U8","v":0}]
[null,"Customers name",null,null,null,null,null,null,null,null,null,null,null,null,null,null,null,null,null,null,"Telephone",null,null,null,null,"e-mail"]
[null,{"$f":"'Ark1'!B10","v":0},null,null,null,null,null,null,null,null,null,null,null,null,null,null,null,null,null,null,{"$f":"'Ark1'!U10","v":0},null,null,null,null,{"$f":"'Ark1'!Z10","v":0}]
[null,"Address"]
[null,{"$f":"'Ark1'!B12","v":0}]
[null,"Postcode",null,null,null,null,"Place"]
[]
[null,{"$f":"'Ark1'!B15","v":0},null,null,null,null,{"$f":"'Ark1'!G15","v":0}]
[]
[null,"Recipients - Tick off",null,null,null,null,null,null,null,"Contents - Tick off"]
[null,null,"Conpanies",null,null,null,{"$f":"'Ark1'!G18","v":0},null,null,"Invoices",null,null,null,null,{"$f":"'Ark1'!O18","v":0},null,"Catalogues",null,null,null,null,null,{"$f":"'Ark1'!W18","v":0},null,"Other",null,{"$f":"'Ark1'!AA18","v":0},null,"The information is used to public statistics and improvement of our services"]
[null,null,"Individuals",null,null,null,{"$f":"'Ark1'!G19","v":0},null,null,"Documents",null,null,null,null,{"$f":"'Ark1'!O19","v":0},null,"Small goods",null,null,null,null,null,{"$f":"'Ark1'!W19","v":0}]
[null,null,"Mixed",null,null,null,{"$f":"'Ark1'!G20","v":0},null,null,"Marketing/DM",null,null,null,null,{"$f":"'Ark1'!O20","v":0},null,"Magazines",null,null,null,null,null,{"$f":"'Ark1'!W20","v":0}]
[null,"Specifications"]
[]
[null,"Destination",null,null,null,null,"Number of items",null,null,null,null,null,"Total weight",null,null,null,null,null,"Number of load carriers"]
[]
[null,null,null,null,null,null,null,null,null,null,null,null,"Kilos",null,null,null,null,null,"Trays, boxes etc."]
[null,"  Domestic",null,null,null,null,{"$f":"'Ark1'!G26","v":0},null,null,null,null,null,{"$f":"'Ark1'!M26","v":0},null,null,null,null,null,{"$f":"'Ark1'!S26","v":0},null,null,null,null,null,{"$f":"'Ark1'!Y26","v":0}]
[]
[null,"  International",null,null,null,null,{"$f":"'Ark1'!G28","v":0},null,null,null,null,null,{"$f":"'Ark1'!M28","v":0},null,null,null,null,null,{"$f":"'Ark1'!S28","v":0}]
[]
[]
[]
[]
[]
[]
[null,"Surcharge for extra large items",null,null,null,null,null,null,null,null,null,null,"Number"]
[null,"Formattillegg 1",null,null,null,null,null,null,null,null,null,null,null,null,null,">","2 -7 cm tykk  og størrelse inntil 35,3 x 25 cm"]
[null,"Surcharge 1",null,null,null,null,null,null,null,null,null,null,{"$f":"'Ark1'!M37","v":0},null,null,">","Between 2 -7 cm thick and size up to 35,3 x 25 cm"]
[null,"Surcharge 2",null,null,null,null,null,null,null,null,null,null,{"$f":"'Ark1'!M38","v":0},null,null,">","More than 7 cm thick or larger than 35,3 x 25 cm"]
[null,"Surcharge 1 abroad",null,null,null,null,null,null,null,null,null,null,{"$f":"+'Ark1'!M39","v":0}]
[null,"Surcharge 2 abroad",null,null,null,null,null,null,null,null,null,null,{"$f":"+'Ark1'!M40","v":0}]
[]
[]
[]
[]
[]
[null,"Signatures etc.",null,null,null,null,null,null,null,null,null,null,null,null,null,null,null,null,"Terms and conditons Items of varying sizes apply"]
[null,"Company name or subcontractor",null,null,null,null,null,null,null,null,null,null,null,null,null,null,null,null,null,"Contact person",null,null,null,null,null,null,null,null,"Telephone"]
[null,{"$f":"'Ark1'!B45","v":0},null,null,null,null,null,null,null,null,null,null,null,null,null,null,null,null,null,{"$f":"'Ark1'!T45","v":0},null,null,null,null,null,null,null,null,{"$f":"'Ark1'!AC45","v":0}]
[null,"Place",null,null,null,null,null,null,null,null,null,null,null,"Date",null,null,null,null,null,"Place",null,null,null,null,null,null,null,null,"Date and time"]
[null,{"$f":"'Ark1'!B47","v":0},null,null,null,null,null,null,null,null,null,null,null,{"$f":"'Ark1'!N47","v":0},null,null,null,null,null,{"$f":"'Ark1'!T47","v":0},null,null,null,null,null,null,null,null,{"$f":"'Ark1'!AC47","v":0}]
[]
[]
[null,{"$f":"'Ark1'!B50","v":0},null,null,null,null,null,null,null,null,null,null,null,null,null,null,null,null,null,null,null,null,null,{"$f":"'Ark1'!X50","v":0}]
[]
[]
[null,null,"Cutomers stamp and signature",null,null,null,null,null,null,null,null,null,null,null,null,null,null,null,null,null,null,null,null,"Stamp and signature Posten Norge AS"]
[]
[]
[]
[null,"Remarks and corrections by Posten Norge AS"]
[null,"Total weith of the mailing",null,null,null,null,null,null,null,null,"Remarks:",null,null,null,null,null,null,null,null,null,null,null,null,null,null,null,null,{"$f":"'Ark1'!AB58","v":0},"The order form is correctet"]
[null,null,null,null,null,null,null,null,null,{"$f":"'Ark1'!J59","v":0}]
[null,{"$f":"'Ark1'!B60","v":0},null,null,null,null,null,null,"kg"]
[]
[]
[null,null,null,null,null,null,null,null,null,null,null,null,null,null,null,null,null,"Posten Norge AS, Foretaksregisteret: NO 984 661 185 MVA"]
[null,"2019 V01"]